Cogmind - Beta 13 @@@ ROGUE MODE // 2024.06.03 @ 19:25:26 Player: paplal Result: Destroyed by EMP Trap Performance ------------- Evolutions (0) 0 Regions Visited (1) 200 Robots Destroyed (23) 115 Value Destroyed (363) 363 Prototype IDs (0) 0 Alien Tech Used (0) 0 Bonus (0) 0 TOTAL SCORE: 678 Bonus ------- None Cogmind --------- Core Integrity 0/250 Matter 300/300 Energy 121/125 System Corruption 0% Temperature Cool (2) Movement Treading (160) Location -10/Materials Parts ------- > --- POWER (1) -------- Light Ion Engine > --- PROPULSION (2) --- Light Treads Light Treads > --- UTILITY (2) ------ Medium Storage Unit Improved Terrain Scanner > --- WEAPON (2) ------- Beam Cannon Light Assault Rifle > --- INVENTORY (10) --- Light Ion Engine Light Treads Aluminum Leg Aluminum Leg Aluminum Leg Wheel Peak State ------------ > --- POWER ------------ Light Ion Engine > --- PROPULSION ------- Aluminum Leg Aluminum Leg > --- UTILITY ---------- Small Storage Unit Improved Terrain Scanner > --- WEAPON ----------- Small Laser Light Assault Rifle > --- INVENTORY -------- Light Ion Engine Light Ion Engine Light Treads Light Treads Wheel Beam Cannon Light Assault Rifle [Rating: 9] Favorites ----------- Power Light Ion Engine Engine Light Ion Engine Propulsion Light Treads Treads Light Treads Leg Aluminum Leg Utility Improved Terrain Scanner Device Improved Terrain Scanner Storage Small Storage Unit Weapon Light Assault Rifle Energy Gun Small Laser Energy Cannon Beam Cannon Ballistic Gun Light Assault Rifle Build | -11 -10 ------- Run | Yrd Mat Slots Evolved . | . . Power . | . . Propulsion . | . . Utility . | . . Weapon . | . . Parts Attached 18 | 6 12 Power 3 | . 3 Engine 3 | . 3 Core . | . . Reactor . | . . Propulsion 7 | 2 5 Treads 4 | 1 3 Leg 3 | 1 2 Wheel . | . . Hover . | . . Flight . | . . Utility 3 | 2 1 Device 1 | 1 . Storage 2 | 1 1 Processor . | . . Hackware . | . . Protection . | . . Artifact . | . . Weapon 5 | 2 3 Energy Gun 1 | . 1 Energy Cannon 1 | . 1 Ballistic Gun 3 | 2 1 Ballistic Cannon . | . . Launcher . | . . Special Weapon . | . . Impact Weapon . | . . Slashing Weapon . | . . Piercing Weapon . | . . Special Melee Weapon . | . . Unidentified Prototypes . | . . Parts Lost 5 | . 5 Power 2 | . 2 Propulsion 2 | . 2 Utility . | . . Weapon 1 | . 1 Highest Loss Streak 4 | . 4 To Critical Strikes . | . . Average Slot Usage (%) 93 | . 93 Engine 9 | . 9 Treads 16 | . 16 Leg 10 | . 10 Device 14 | . 14 Storage 13 | . 13 Energy Gun 8 | . 8 Energy Cannon 4 | . 4 Ballistic Gun 15 | . 15 Naked Turns . | . . Heaviest Build 18 | 8 18 Greatest Support 40 | 20 40 Greatest Overweight (x) 2 | . 2 Average Overweight (x) . | . . Largest Inventory Capacity 10 | 8 10 Average Capacity 8 | 7 8 Most Carried 8 | 6 8 Average Carried 6 | 5 6 Final Capacity 10 | 8 10 Final Carried 6 | 6 6 Class Distribution -------------------- 100% | Mutant Dominant Class ---------------- Mutant | -10/Materials Resources | -11 -10 ----------- Run | Yrd Mat Matter Collected 450 | 282 168 Remotely . | . . Salvage Created 816 | 147 669 Parts 52 | 10 42 Haulers Intercepted 1 | . 1 Recyclers Shooed . | . . Parts Field Recycled . | . . Retrieved Matter . | . . Parts Self-Destructed . | . . Prevented . | . . Kills | -11 -10 ------- Run | Yrd Mat Combat Hostiles Destroyed 11 | . 11 Guns 10 | . 10 Cannons 1 | . 1 Classes Destroyed 9 | 3 6 Worker 3 | 1 2 Builder 2 | . 2 Tunneler 1 | 1 . Hauler 1 | . 1 Recycler 3 | 1 2 Operator 1 | . 1 Watcher 1 | . 1 Swarmer 4 | . 4 Grunt 7 | . 7 Best Kill Streak 4 | 3 4 Combat Bots Only 3 | . 3 Max Kills in Single Turn 1 | 1 1 Gunslinging . | . . Exploded . | . . Melee . | . . Uniques/NPCs Destroyed . | . . Combat | -11 -10 -------- Run | Yrd Mat Hostile Shots Fired 120 | . 120 Missed 36 | . 36 Damage Taken 941 | . 941 Core 258 | . 258 Absorbed by Shields . | . . Core Remaining (%) 100 | 100 . Volleys Fired 90 | 17 73 Largest 2 | 2 2 Hottest 80 | 40 80 Shots Fired 167 | 22 145 Gun 148 | 22 126 Cannon 19 | . 19 Launcher . | . . Special . | . . Kinetic 95 | 22 73 Thermal 72 | . 72 Explosive . | . . Electromagnetic . | . . Robot Hit Streak 10 | 6 10 Robot Miss Streak 7 | 2 7 Penetration Max . | . . Secondary Targets 1 | . 1 Max Gunslinging Chain 1 | . 1 Shots Hit Robots 87 | 14 73 Core Hits 44 | 8 36 Critical Kills . | . . Critical Parts Destroyed . | . . Critical Strikes . | . . Melee Attacks . | . . Impact . | . . Slashing . | . . Piercing . | . . Sneak Attacks . | . . Combat Hostiles . | . . Follow-up Attacks . | . . Damage Inflicted 928 | 116 812 Guns 753 | 116 637 Cannons 175 | . 175 Explosions . | . . Melee . | . . Ramming . | . . Kinetic 424 | 116 308 Thermal 504 | . 504 Explosive . | . . Electromagnetic . | . . Impact . | . . Slashing . | . . Piercing . | . . Highest Corruption . | . . Average Corruption . | . . Corruption Purged . | . . Corruption Blocked . | . . Overload Shots . | . . Overflow Damage . | . . Projectiles . | . . Explosions . | . . Melee . | . . Knockbacks . | . . Impact . | . . Kinetic . | . . Secondary . | . . Self-Inflicted Damage . | . . Shots . | . . Rammed . | . . Targets Rammed . | . . Kicked . | . . Crushed . | . . Highest Temperature 245 | . 245 Average Temperature 74 | . 74 Received Heat Transfer 354 | . 354 Effects 4 | . 4 Interference 4 | . 4 Siege Activations . | . . Robots Corrupted . | . . Combat Hostiles . | . . Parts Fried . | . . Impact Corruptions . | . . Robots Melted . | . . Combat Hostiles . | . . Parts Melted . | . . Heat Transferred 1095 | . 1095 Parts Sabotaged . | . . Parts Stolen . | . . Parts Stripped . | . . Power Chain Reactions . | . . Alert | -11 -10 ------- Run | Yrd Mat Peak Influence 227 | 15 227 Initial 9 | . 9 Average 77 | 2 88 Maximum Alert Level 1 | . 1 Low Security (%) 96 | 100 95 Level 1 3 | . 4 Level 2 . | . . Level 3 . | . . Level 4 . | . . Level 5 . | . . High Security . | . . Max Security . | . . Squads Dispatched 4 | . 4 Investigation 1 | . 1 Extermination . | . . Reinforcement 3 | . 3 Assault . | . . Garrison . | . . Intercept . | . . Searches Triggered . | . . Construction Impeded . | . . Haulers Reinforced . | . . Active Scanning Responses . | . . Cargo Convoy Interrupts . | . . Stealth | -11 -10 --------- Run | Yrd Mat Distress Signals . | . . Communications Jammed . | . . Distress Signals . | . . Times Spotted 24 | . 24 Peak Tracking Total 5 | . 5 Tactical Retreats 3 | . 3 Traps | -11 -10 ------- Run | Yrd Mat Traps Triggered 2 | . 2 Indirectly . | . . Trap Hack Attempts . | . . Triggered . | . . Disarmed . | . . Reprogrammed . | . . Reused . | . . Traps Extracted . | . . Installed . | . . Triggered . | . . Machines | -11 -10 ---------- Run | Yrd Mat Machines Disabled . | . . Max in Single Turn . | . . Machines Repaired . | . . Machines Dismantled . | . . Machines Sabotaged . | . . Overloaded Fab Kills . | . . Hacking | -11 -10 --------- Run | Yrd Mat Machines Accessed 3 | . 3 Terminals 1 | . 1 Fabricators . | . . Repair Stations . | . . Recycling Units 2 | . 2 Scanalyzers . | . . Garrison Access . | . . Total Hacks 8 | . 8 Successful 1 | . 1 Failed 7 | . 7 Catastrophic 2 | . 2 Database Lockouts . | . . Manual . | . . Terminals 2 | . 2 Fabricators . | . . Repair Stations . | . . Recycling Units 6 | . 6 Scanalyzers . | . . Garrison Access . | . . Terminal Hacks . | . . Fabricator Hacks . | . . Repair Station Hacks . | . . Recycling Unit Hacks 1 | . 1 Retrieve Components 1 | . 1 Scanalyzer . | . . Garrison Access Hacks . | . . Unauthorized Hacks . | . . Terminals . | . . Fabricators . | . . Repair Stations . | . . Recycling Units . | . . Scanalyzers . | . . Garrison Access . | . . Data Cores Recovered . | . . Used . | . . Hacking Detections 2 | . 2 Full Trace Events . | . . Feedback Events . | . . Feedback Blocked . | . . Robot Schematics Acquired . | . . Robots Built . | . . Authchips . | . . Time . | . . Total Robot Build Rating . | . . Part Schematics Acquired . | . . Parts Built . | . . Authchips . | . . Time . | . . Total Part Build Rating . | . . Parts Repaired . | . . Time . | . . Parts Recycled . | . . Recycled Matter . | . . Retrieved Matter . | . . Retrieved Components 10 | . 10 Parts Scanalyzed . | . . Part Schematics Acquired . | . . Parts Damaged . | . . Bothacking | -11 -10 ------------ Run | Yrd Mat Used RIF Installer . | . . Robots Hacked . | . . Non-combat . | . . Combat . | . . Robot Hacks Applied . | . . Relay Couplers Released . | . . Fabnet Peak Effective % . | . . Robots Rewired . | . . Allies Hacked . | . . Hacks Repelled . | . . Allies | -11 -10 -------- Run | Yrd Mat Total Allies . | . . Largest Group . | . . Highest-Rated Group . | . . Highest-Rated Ally . | . . Total Orders . | . . Ally Attacks . | . . Total Damage . | . . Kills . | . . Allies Corrupted . | . . Allies Melted . | . . Intel | -11 -10 ------- Run | Yrd Mat Robot Analysis Total . | . . Derelict Logs Recovered . | . . Drone Launches . | . . Drone Recoveries . | . . Exploration | -11 -10 ------------- Run | Yrd Mat Turns Passed 1068 | 139 929 Spaces Moved 522 | 65 457 Core 15 | 13 2 Treads 374 | 50 324 Legs 133 | 2 131 Wheels . | . . Hover . | . . Flight . | . . Fastest Speed 50 | 50 120 Average Speed 147 | 136 148 Slowest Speed 160 | 160 160 Overloaded Moves . | . . Propulsion Burnouts . | . . Robots Hopped . | . . Cave-ins Triggered . | . . Exploration Rate (%) 31 | 5 58 Regions Visited 1 Branch Regions . Pre-discovered Areas . | . . Known Exits Taken . | . . Unknown Exits Taken 1 | 1 . Scrap Searched . | . . Spaces Dug . | . . Terrain Destroyed . | . . Melee . | . . Projectile . | . . AOE . | . . Terrain Rammed . | . . Walls Destroyed . | . . Machines Disabled . | . . Actions | -11 -10 --------- Run | Yrd Mat Total 677 | 96 581 Wait 24 | . 24 Move 521 | 64 457 Hop . | . . Pick Up 18 | 9 9 Fast Attach 4 | 3 1 Attach 14 | 3 11 Detach 4 | . 4 Swap . | . . Drop 2 | . 2 Fire 90 | 17 73 Melee . | . . Ram . | . . Kick . | . . Crush . | . . Escape Stasis . | . . Rewire . | . . Trap . | . . Miscellaneous . | . . Route ------- -11/Scrapyard -10/Materials (discovered 5 exits: [*Mat x3] / [*Min] / [*Sub]) History --------- Turn | Location | Event 11 | -11/Scrapyard | Discovered new exit (range 15) 140 | -11/Scrapyard | Entered Materials 317 | -10/Materials | Build established: Mutant 348 | -10/Materials | Discovered new exit (range 7) 398 | -10/Materials | Discovered new exit (range 14) 615 | -10/Materials | Core integrity fell below 50% 635 | -10/Materials | Lost 4 parts (1p2n1w) 653 | -10/Materials | Core integrity fell below 20% 730 | -10/Materials | Discovered new exit (range 7) 831 | -10/Materials | Discovered new exit (range 16) 923 | -10/Materials | Discovered new exit (range 10) 1069 | -10/Materials | Destroyed by EMP Trap Last Messages --------------- 01011_ K-01 Serf collects debris. 01021_ R-06 Scavenger inserts Sml. Laser into recycling unit. 01024_ K-01 Serf collects debris. 01024_ R-06 Scavenger inserts Hcp. Storage Unit into recycling unit. 01027_ R-06 Scavenger inserts Ion Engine into recycling unit. 01028_ K-01 Serf collects debris. 01030_ R-06 Scavenger inserts Welding Torch into recycling unit. 01031_ Recycling unit begins recycling process. 01031_ K-01 Serf collects debris. 01069_ Triggered EMP Trap. 01069_ A bubble of electromagnetic force engulfs the area. 01069_ EMP Trap short circuited. 01069_ Door malfunctions. 01069_ A bubble of electromagnetic force engulfs the area. Map ----- +----------------------------------------------------+ | ????????????????????????????????????? | | ????????????????????????#?????? ???? | | ?????????????????????#???????????? ?? | | ??????????????????????????########### | | ????????????????????????? # [ # | | ?????????????????????"????# # | | ?????????????????????? ???# """ """ + | | ??????????????????????????# """ """ # | | ??????????????????????????# """ """ # | | ?????????????????????? ???# # | | ?????????????????????"????###+####### | | ????????????#?????????????### ####### | | ??????????????????????????# | | ??????????????????????????# | | ??????????????????????#?#?# =!! | | ?????????????#????????????# [ =!! | | ????????????????#???????#?# =** =!! | | ????????????????#????###??# ""*[* % | | ??????????????????????#???# "Y=! | | ???????#??????????????????#! "" !||! | | ??#????????????????#??#???# |! | | ??????????????????#??????## |! | | ?????????????#?#?????#??### ##"Y"# | | ????#????################## ##"""# | | ?????????# ^^ ###### | | ?????????# <@ a #?#??? | | ?????????# #????? | | ?????#???####/##################????? | | ??????????? ???? ??? ?? ? ??? ? | | ??#???????# !! #?#?? ????? /?? ???? | | ??????????# !! #???????????#?? ??? | | ??????????# ! ##???????????????? ? | | ??????????# #?????? "????????? ? | | ????#?????# #?#???? ????#? ???? | | ??????????########?????? ?????? ? ?? | | ????????#######????????? ?? ??????#?# | | ????????#* ##########+############ | | ????????# | | ????????# | | ????????# ! | | ???#????# ########## ###+###???? | | ????????#### ##???????## #?? ??????? | | ??????????## #???????#?# #?????????? | | ???????????# #?????????# #?????????? | | ???????????# #???##????# #??????? ?? | | ??????#??#?# ##????????# #??"??????? | | ???????????# #?????????# #??????"??? | | ???????????# #########?# #?????????? | | ?#?????????# ## ### #?????????? | | ?????#????## ## """ #?# ########### | +----------------------------------------------------+ Best States ------------- Heat Dissipation 25 Energy Generation 10 Energy Capacity 125 Matter Stores 300 Matter Capacity 300 Sight Range 16 Terrain Scan Range 16 Terrain Scan Density 10 Evasion (%) 55 Recoil Reduction 2 Item Schematics ----------------- None Robot Schematics ------------------ None Fabricated ------------ Nothing Alien Tech Used ----------------- None Achievements -------------- None Challenges ------------ None Game ------ Seed GreatVisualPenetrator Manual? 0 Play Time 00:12:50 Cumulative 13.9 hours Start 2024.06.03 @ 19:11:27 End 2024.06.03 @ 19:25:26 Sessions 1 Manual Loads 0 Difficulty Rogue Special Mode None Game No. 21 Rogue 21 Adventurer 0 Explorer 0 Win Type - Total 0 Types 0/0/0/0/0/0/0/0/0 Lore% 13 Gallery% 22 Achievement% 17 Wizard Run 0 Options --------- Layout 2 ASCII 0 Keyboard 0 Movement Mouse Keybinds 0 Fullscreen 1 Font 48/Smallcaps Map View 50x44 Zoom Use 0% Tactical HUD 1 Map Filters NONE Filters NONE Steam 1 RUN: ccc256c1-f830-4b0d-80b7-93f5c1fd1b60